fUST/lending_fUST_20250827
["ID","MTS","AMOUNT","RATE_DAILY","PERIOD"]
[381644805,1756301446681,-2826.88,0.00021917,2]
[381644807,1756301446690,-480.0,0.00021917,2]
[381644809,1756301446700,-480.0,0.00021917,2]
[381644811,1756301446709,-480.0,0.00021917,2]
[381644813,1756301446718,-480.0,0.00021917,2]
[381644815,1756301446728,-480.0,0.00021917,2]
[381644817,1756301446738,-480.0,0.00021917,2]
[381644819,1756301446747,-480.0,0.00021917,2]
[381644821,1756301446755,-480.0,0.00021917,2]
[381644823,1756301446767,-480.0,0.00021917,2]
[381644825,1756301446776,-480.0,0.00021917,2]
[381644827,1756301446785,-480.0,0.00021917,2]
[381644829,1756301446795,-480.0,0.00021917,2]
[381644831,1756301446804,-480.0,0.00021917,2]
[381644833,1756301446814,-480.0,0.00021917,2]
[381644835,1756301446827,-480.0,0.00021917,2]
[381644837,1756301446836,-480.0,0.00021917,2]
[381644839,1756301446845,-231.45416634,0.00021917,2]
[381644841,1756301446854,-480.0,0.00021917,2]
[381644843,1756301446865,-548.54,0.00021917,2]
[381644845,1756301446874,-480.0,0.00021917,2]
[381644847,1756301446883,-480.0,0.00021917,2]
[381644849,1756301446894,-480.0,0.00021917,2]
[381644851,1756301446903,-480.0,0.00021917,2]
[381644854,1756301446913,-480.0,0.00021917,2]
[381644855,1756301446922,-584.23,0.00021917,2]
[381644857,1756301446931,-480.0,0.00021917,2]
[381644859,1756301446940,-480.0,0.00021917,2]
[381644861,1756301446950,-480.0,0.00021917,2]
[381644863,1756301446959,-480.0,0.00021917,2]
[381644865,1756301446968,-696.66,0.00021917,2]
[381644868,1756301446978,-603.63,0.00021917,2]
[381644870,1756301446987,-480.0,0.00021917,2]
[381644872,1756301446997,-480.0,0.00021917,2]
[381644874,1756301447006,-303.93342745,0.00021917,2]
[381644877,1756301447027,-1808.56,0.00021807,10]
[381644879,1756301447036,-176.06657255,0.00021917,2]
[381644881,1756301447045,-480.0,0.00021917,2]
[381644883,1756301447055,-794.83,0.00021917,2]
[381644885,1756301447064,-480.0,0.00021917,2]
[381644887,1756301447073,-480.0,0.00021917,2]
[381644889,1756301447082,-480.0,0.00021917,2]
[381644891,1756301447091,-480.0,0.00021917,2]
[381644893,1756301447101,-480.0,0.00021917,2]
[381644895,1756301447111,-480.0,0.00021917,2]
[381644897,1756301447120,-480.0,0.00021917,2]
[381644898,1756301447129,-480.0,0.00021917,2]
[381644900,1756301447138,-480.0,0.00021917,2]
[381644902,1756301447148,-480.0,0.00021917,2]
[381644904,1756301447158,-480.0,0.00021917,2]
[381644906,1756301447168,-480.0,0.00021917,2]
[381644908,1756301447178,-537.59,0.00021917,2]
[381644910,1756301447188,-480.0,0.00021917,2]
[381644912,1756301447198,-170.45342845,0.00021917,2]
[381644957,1756301447620,-309.54657155,0.00021917,2]
[381644959,1756301447629,-209.76575814,0.00021917,2]
[381644961,1756301447639,-521.76,0.00021917,2]
[381644963,1756301447648,-480.0,0.00021917,2]
[381644965,1756301447657,-480.0,0.00021917,2]
[381644967,1756301447666,-480.0,0.00021917,2]
[381644969,1756301447675,-480.0,0.00021917,2]
[381644971,1756301447685,-480.0,0.00021917,2]
[381644973,1756301447694,-480.0,0.00021917,2]
[381644975,1756301447704,-480.0,0.00021917,2]
[381644977,1756301447713,-480.0,0.00021917,2]
[381644979,1756301447722,-480.0,0.00021917,2]
[381644981,1756301447731,-2882.42,0.00021917,2]
[381644982,1756301447741,-480.0,0.00021917,2]
[381644984,1756301447752,-480.0,0.00021917,2]
[381644987,1756301447763,-480.0,0.00021917,2]
[381644989,1756301447772,-480.0,0.00021917,2]
[381644991,1756301447782,-480.0,0.00021917,2]
[381644992,1756301447791,-480.0,0.00021917,2]
[381644994,1756301447800,-480.0,0.00021917,2]
[381644996,1756301447810,-480.0,0.00021917,2]
[381644998,1756301447822,-480.0,0.00021917,2]
[381645000,1756301447832,-480.0,0.00021917,2]
[381645002,1756301447841,-480.0,0.00021917,2]
[381645004,1756301447851,-480.0,0.00021917,2]
[381645006,1756301447861,-480.0,0.00021917,2]
[381645008,1756301447871,-480.0,0.00021917,2]
[381645010,1756301447880,-480.0,0.00021917,2]
[381645012,1756301447895,-601.79,0.00021917,2]
[381645015,1756301447904,-480.0,0.00021917,2]
[381645016,1756301447914,-480.0,0.00021917,2]
[381645019,1756301447924,-480.0,0.00021917,2]
[381645020,1756301447933,-480.0,0.00021917,2]
[381645022,1756301447942,-642.36,0.00021917,2]
[381645024,1756301447951,-480.0,0.00021917,2]
[381645027,1756301447961,-480.0,0.00021917,2]
[381645029,1756301447971,-480.0,0.00021917,2]
[381645031,1756301447981,-480.0,0.00021917,2]
[381645033,1756301447990,-480.0,0.00021917,2]
[381645035,1756301448000,-480.0,0.00021917,2]
[381645037,1756301448012,-480.0,0.00021917,2]
[381645039,1756301448021,-480.0,0.00021917,2]
[381645041,1756301448030,-480.0,0.00021917,2]
[381645043,1756301448040,-480.0,0.00021917,2]
[381645045,1756301448050,-480.0,0.00021917,2]
[381645047,1756301448059,-480.0,0.00021917,2]
[381645049,1756301448069,-541.8,0.00021917,2]
[381645051,1756301448079,-480.0,0.00021917,2]
[381645052,1756301448089,-500.31,0.00021917,2]
[381645054,1756301448099,-480.0,0.00021917,2]
[381645056,1756301448109,-480.0,0.00021917,2]
[381645058,1756301448119,-480.0,0.00021917,2]
[381645061,1756301448130,-480.0,0.00021917,2]
[381645063,1756301448140,-480.0,0.00021917,2]
[381645065,1756301448149,-480.0,0.00021917,2]
[381645066,1756301448159,-480.0,0.00021917,2]
[381645069,1756301448169,-480.0,0.00021917,2]
[381645070,1756301448179,-480.0,0.00021917,2]
[381645073,1756301448189,-480.0,0.00021917,2]
[381645074,1756301448199,-1623.69,0.00021917,2]
[381645076,1756301448208,-537.14,0.00021917,2]
[381645079,1756301448218,-1285.42,0.00021917,2]
[381645080,1756301448228,-656.85,0.00021917,2]
[381645082,1756301448237,-480.0,0.00021917,2]
[381645084,1756301448247,-480.0,0.00021917,2]
[381645087,1756301448257,-480.0,0.00021917,2]
[381645089,1756301448268,-480.0,0.00021917,2]
[381645090,1756301448278,-467.93752988,0.00021917,2]
[381646189,1756301459798,5000.0,0.0002001,2]
[381646930,1756301476382,5000.0,0.0002001,2]
[381646931,1756301480175,257.91717519,0.00019919,2]
[381646932,1756301492770,5000.0,0.0002001,2]
[381646933,1756301499917,5000.0,0.00019178,2]
[381646934,1756301500628,-203.6903084,0.00020019,2]
[381646955,1756301509917,5000.0,0.00020094,2]
[381646956,1756301526134,5000.0,0.0002001,2]
[381646957,1756301542743,5000.0,0.0002001,2]
[381646958,1756301558789,5000.0,0.0002001,2]
[381646959,1756301564008,462.40853284,0.00020009,2]
[381646960,1756301564798,4537.60146716,0.000199,2]
[381646961,1756301564829,1355.62509254,0.000199,2]
[381646962,1756301574796,3533.88143462,0.0002001,2]
[381646963,1756301703192,381.86303753,0.00030925,60]
[381646964,1756301745635,6111.0743311,0.000199,2]
[381646965,1756301766457,159.82635,0.00019885,2]
[381646967,1756301818963,5300.86,0.00030925,60]
[381646968,1756301834394,-161.50970736,0.00020135,2]
[381646969,1756301835259,-138.49029264,0.00020135,2]
[381646970,1756301835284,-187.53316756,0.00020135,2]
[381646971,1756301840456,10000.01,0.0002,3]
[381646972,1756301840482,10000.01,0.0002,3]
[381646973,1756301840507,10000.01,0.0002,3]
[381646974,1756301840533,10000.01,0.0002,3]
[381646975,1756301840558,10000.01,0.0002,3]
[381646976,1756301840583,10000.01,0.0002,3]
[381646977,1756301840607,10000.01,0.0002,3]
[381646978,1756301840631,10000.01,0.0002,3]
[381646979,1756301840654,10000.01,0.0002,3]
[381646980,1756301840679,3534.75115233,0.0002,3]
[381646981,1756301923038,6094.71560803,0.000199,2]
[381646982,1756301931179,702.615824,0.00013699,2]
[381646984,1756301963464,-195.80496745,0.00020037,2]
[381646985,1756301965576,-190.7112023,0.00020037,2]
[381646986,1756301967712,-190.89508705,0.00020037,2]
[381646987,1756301970161,-179.53353421,0.00020037,2]
[381646988,1756301972370,-398.30079465,0.00020037,2]
[381646989,1756301975329,-422.82178038,0.00020037,2]
[381646990,1756301977022,-173.7874862,0.00020037,2]
[381646991,1756301979259,-240.67666115,0.00020037,2]
[381646992,1756301980085,1751.85485224,0.0002001,2]
[381646993,1756301981252,-297.06877448,0.00020037,2]
[381646994,1756301983700,-60.48625141,0.00020037,2]
[381646995,1756301983723,-146.11550552,0.00020042,2]
[381646996,1756301986555,-428.7276918,0.00020042,2]
[381646997,1756301989317,-17.15680268,0.00020042,2]
[381647000,1756301996677,1173.07488436,0.0002001,2]
[381647001,1756302004392,272.228112,0.00019532,2]
[381647002,1756302017701,-241.1268777,0.00020034,2]
[381647003,1756302019884,-176.74773164,0.00020034,2]
[381647004,1756302020761,500.0,0.00030912,60]
[381647005,1756302022020,-195.23349707,0.00020034,2]
[381647006,1756302026293,-179.20355683,0.00020034,2]
[381647007,1756302028846,630.26490909,0.0002001,2]
[381647008,1756302029223,-401.47900316,0.00020034,2]
[381647009,1756302031270,-304.76650293,0.00020034,2]
[381647011,1756302032908,-295.96346667,0.00020034,2]
[381647012,1756302036402,-230.45266918,0.00020034,2]
[381647013,1756302038682,-246.09513874,0.00020034,2]
[381647014,1756302040989,-185.14443571,0.00020034,2]
[381647015,1756302043036,-168.94994048,0.00020034,2]
[381647016,1756302044790,-219.11092854,0.00020034,2]
[381647017,1756302046193,1181.41252959,0.0002001,2]
[381647018,1756302046971,-439.28292527,0.00020034,2]
[381647019,1756302049716,-227.23635041,0.00020034,2]
[381647020,1756302053005,-300.0,0.00020034,2]
[381647021,1756302054583,1049.75311265,0.0002001,2]
[381647022,1756302056228,-488.0659922,0.00020034,2]
[381647023,1756302060970,-151.70607044,0.00020034,2]
[381647024,1756302062548,-300.8094009,0.00020034,2]
[381647025,1756302063634,1606.29133832,0.0002001,2]
[381647026,1756302066990,-74.62551213,0.00020034,2]
[381647027,1756302079966,400.4918999,0.0002001,2]
[381647028,1756302096358,160.0,0.0002,3]
[381647029,1756302106494,-160.0,0.00020034,2]
[381647030,1756302106518,-27.49038957,0.00020034,2]
[381647031,1756302110085,-279.76643498,0.00020034,2]
[381647032,1756302112745,6077.80057802,0.000199,2]
[381647033,1756302113075,187.49038957,0.0002001,2]
[381647034,1756302129824,623.75945924,0.0002001,2]
[381647035,1756302168823,-177.91537402,0.00020034,2]
[381647036,1756302173136,-272.67466308,0.00020034,2]
[381647037,1756302176071,-288.3378209,0.00020034,2]
[381647038,1756302178077,-238.21785205,0.00020034,2]
[381647039,1756302180693,738.927858,0.0002001,2]
[381647040,1756302198672,238.21785205,0.0002001,2]
[381647046,1756302298430,6166.24470974,0.000199,2]
[381647058,1756302409803,160.0,0.0002,3]
[381647066,1756302477439,6264.77855786,0.000199,2]
[381647067,1756302502212,237.81707756,0.00019527,2]
[381647068,1756302520336,800.0,0.00019951,2]
[381647070,1756302551602,-150.74373565,0.00020034,2]
[381647071,1756302551936,160.0,0.00020034,2]
[381647072,1756302563233,152.00856054,0.000201,2]
[381647074,1756302566610,453.68345598,0.0002,4]
[381647076,1756302629165,1934.18250814,0.00020037,2]
[381647077,1756302630298,180.0,0.00020849,120]
[381647092,1756302631547,180.0,0.00021892,120]
[381647108,1756302631844,-300.0,0.00020129,2]
[381647110,1756302631853,-300.0,0.00020129,2]
[381647111,1756302631862,-186.0,0.00020129,2]
[381647112,1756302631871,-1120.0,0.00020129,2]
[381647113,1756302631881,-565.81780907,0.0002013,2]
[381647114,1756302631890,-630.48270155,0.0002013,2]
[381647115,1756302631899,-630.48270155,0.0002013,2]
[381647116,1756302631907,-630.48270155,0.0002013,2]
[381647117,1756302631916,-630.48270155,0.0002013,2]
[381647118,1756302631925,-630.48270155,0.0002013,2]
[381647119,1756302631932,-630.48270155,0.0002013,2]
[381647120,1756302631940,-630.48270155,0.0002013,2]
[381647121,1756302631948,-1200.0,0.0002013,2]
[381647122,1756302631956,-12468.52304032,0.00020131,2]
[381647123,1756302631979,-2526.36616105,0.00020131,2]
[381647148,1756302637658,-563.14736551,0.00020129,2]
[381647150,1756302637668,-516.02584187,0.00020129,2]
[381647152,1756302637678,-516.02584187,0.00020129,2]
[381647154,1756302637687,-259.94411475,0.00020129,2]
[381647157,1756302637699,-256.08172712,0.00020129,2]
[381647158,1756302637709,-516.02584187,0.00020129,2]
[381647160,1756302637718,-516.02584187,0.00020129,2]
[381647162,1756302637727,-516.02584187,0.00020129,2]
[381647165,1756302637739,-516.02584187,0.00020129,2]
[381647167,1756302637749,-516.02584187,0.00020129,2]
[381647168,1756302637758,-516.02584187,0.00020129,2]
[381647170,1756302637768,-516.02584187,0.00020129,2]
[381647172,1756302637777,-516.02584187,0.00020129,2]
[381647174,1756302637787,-516.02584187,0.00020129,2]
[381647177,1756302637797,-516.02584187,0.00020129,2]
[381647179,1756302637807,-516.02584187,0.00020129,2]
[381647180,1756302637816,-516.02584187,0.00020129,2]
[381647183,1756302637826,-516.02584187,0.00020129,2]
[381647185,1756302637836,-516.02584187,0.00020129,2]
[381647187,1756302637845,-516.02584187,0.00020129,2]
[381647189,1756302637854,-516.02584187,0.00020129,2]
[381647191,1756302637864,-516.02584187,0.00020129,2]
[381647193,1756302637874,-516.02584187,0.00020129,2]
[381647195,1756302637883,-516.02584187,0.00020129,2]
[381647197,1756302637892,-516.02584187,0.00020129,2]
[381647199,1756302637902,-516.02584187,0.00020129,2]
[381647201,1756302637911,-516.02584187,0.00020129,2]
[381647202,1756302637920,-516.02584187,0.00020129,2]
[381647205,1756302637930,-516.02584187,0.00020129,2]
[381647206,1756302637939,-15859.28529711,0.00020131,2]
[381647208,1756302637950,-291.2656589,0.00020137,2]
[381647211,1756302637959,-12707.75045307,0.00020137,3]
[381647212,1756302637969,-160.0,0.00020137,3]
[381647214,1756302637980,-417.15472785,0.00020137,3]
[381647216,1756302637991,-529.56067766,0.00020137,3]
[381647218,1756302638000,-216.14835892,0.00020137,3]
[381647220,1756302638010,-425.44119842,0.00020137,3]
[381647222,1756302638019,-921.2205066,0.00020144,2]
[381647224,1756302638029,-702.615824,0.00020187,2]
[381647226,1756302638038,-160.68708453,0.00020189,5]
[381647228,1756302638048,-192.40341798,0.00020189,5]
[381647230,1756302638057,-453.68345598,0.00020199,4]
[381647232,1756302638067,-453.68345598,0.00020399,4]
[381647234,1756302638078,-453.68345598,0.00020599,4]
[381647236,1756302638090,-667.99652036,0.00020799,6]
[381647238,1756302638102,-500.0,0.0002082,2]
[381647240,1756302638114,-500.0,0.0002082,2]
[381647243,1756302638129,-500.0,0.0002082,2]
[381647245,1756302638141,-2410.82642288,0.00020873,2]
[381647249,1756302638172,-2495.42114612,0.00020873,2]
[381647251,1756302638184,-682.67,0.00020903,3]
[381647254,1756302638196,-341.34,0.00020903,3]
[381647256,1756302638207,-170.67,0.00020903,3]
[381647258,1756302638223,-512.02,0.00020903,3]
[381647260,1756302638235,-234.73,0.00020903,3]
[381647263,1756302638248,-704.22,0.00020903,3]
[381647265,1756302638260,-1667.89,0.00020903,10]
[381647267,1756302638271,-329263.75374133,0.00020913,2]
[381647340,1756302638984,-40736.24625867,0.00020913,2]
[381647342,1756302638995,-500.0,0.00020973,2]
[381647345,1756302639008,-194.72792766,0.00021018,2]
[381647347,1756302639020,-151.0,0.00021018,2]
[381647349,1756302639030,-151.0,0.00021018,2]
[381647351,1756302639041,-151.0,0.00021018,2]
[381647353,1756302639052,-151.0,0.00021018,2]
[381647355,1756302639063,-151.0,0.00021018,2]
[381647358,1756302639073,-151.0,0.00021018,2]
[381647360,1756302639084,-274.44593104,0.00021018,2]
[381647362,1756302639095,-151.0,0.00021018,2]
[381647364,1756302639106,-151.0,0.00021018,2]
[381647366,1756302639117,-151.0,0.00021018,2]
[381647368,1756302639127,-151.0,0.00021018,2]
[381647370,1756302639138,-500.0,0.00021018,2]
[381647372,1756302639148,-151.0,0.00021018,2]
[381647375,1756302639159,-500.0,0.00021018,2]
[381647377,1756302639170,-151.0,0.00021018,2]
[381647379,1756302639181,-500.0,0.00021018,2]
[381647381,1756302639191,-151.0,0.00021018,2]
[381647383,1756302639202,-500.0,0.00021018,2]
[381647385,1756302639215,-151.0,0.00021018,2]
[381647387,1756302639226,-500.0,0.00021018,2]
[381647389,1756302639238,-151.0,0.00021018,2]
[381647391,1756302639249,-500.0,0.00021018,2]
[381647393,1756302639261,-151.0,0.00021018,2]
[381647395,1756302639272,-500.0,0.00021018,2]
[381647398,1756302639283,-500.0,0.00021018,2]
[381647401,1756302639295,-500.0,0.00021018,2]
[381647403,1756302639307,-500.0,0.00021018,2]
[381647406,1756302639317,-500.0,0.00021018,2]
[381647408,1756302639328,-500.0,0.00021018,2]
[381647410,1756302639339,-500.0,0.00021018,2]
[381647412,1756302639349,-4906.24756899,0.00021178,2]
[381647414,1756302639360,-100000.0,0.00021263,2]
[381647416,1756302639372,-600.0,0.0002133,20]
[381647418,1756302639383,-180.99613973,0.00021368,2]
[381647420,1756302639394,-1000.0,0.00021368,2]
[381647422,1756302639404,-4906.24756899,0.00021482,2]
[381647424,1756302639415,-266.632092,0.00021521,2]
[381647426,1756302639426,-6264.77855786,0.00021627,2]
[381647429,1756302639437,-923.70561156,0.00021787,2]
[381647431,1756302639454,-3982.54195743,0.00021787,2]
[381647433,1756302639465,-151.0,0.000218,3]
[381647436,1756302639476,-88103.11,0.000219,2]
[381647438,1756302639489,-128114.42496381,0.000219,2]
[381647441,1756302639505,-32144.02884024,0.000219,2]
[381647443,1756302639518,-2308.46645015,0.000219,2]
[381647491,1756302639958,-923.59919563,0.000219,2]
[381647534,1756302640357,-392.03217178,0.000219,2]
[381647759,1756302642792,-1389.91,0.00020903,10]
[381647761,1756302642803,-83639.14837839,0.000219,2]
[381647763,1756302642814,-151.0,0.000219,3]
[381647765,1756302642824,-420.0,0.00021915,2]
[381647767,1756302642836,-1000.0,0.00021916,2]
[381647769,1756302642845,-3495.0,0.00021916,2]
[381647771,1756302642854,-1680.0,0.00021916,2]
[381647773,1756302642863,-7428.77929086,0.00021917,2]
[381647775,1756302642873,-13000.9792214,0.00021917,2]
[381647777,1756302642883,-480.0,0.00021917,2]
[381647779,1756302642893,-480.0,0.00021917,2]
[381647782,1756302642902,-480.0,0.00021917,2]
[381647785,1756302642911,-480.0,0.00021917,2]
[381647787,1756302642921,-350.62808794,0.00021917,2]
[381647789,1756302642930,-480.0,0.00021917,2]
[381647791,1756302642940,-480.0,0.00021917,2]
[381647793,1756302642949,-480.0,0.00021917,2]
[381647795,1756302642959,-480.0,0.00021917,2]
[381647797,1756302642968,-480.0,0.00021917,2]
[381647799,1756302642978,-480.0,0.00021917,2]
[381647801,1756302642990,-480.0,0.00021917,2]
[381647803,1756302643000,-480.0,0.00021917,2]
[381647809,1756302643343,-480.0,0.00021917,2]
[381647810,1756302643367,-480.0,0.00021917,2]
[381647811,1756302643386,-480.0,0.00021917,2]
[381647813,1756302643401,-480.0,0.00021917,2]
[381647814,1756302643411,-480.0,0.00021917,2]
[381647816,1756302643420,-480.55,0.00021917,2]
[381647818,1756302643429,-480.0,0.00021917,2]
[381647820,1756302643438,-480.0,0.00021917,2]
[381647822,1756302643447,-480.0,0.00021917,2]
[381647824,1756302643457,-480.0,0.00021917,2]
[381647826,1756302643466,-480.0,0.00021917,2]
[381647828,1756302643475,-228.63398384,0.00021917,2]
[381647830,1756302643488,-480.0,0.00021917,2]
[381647832,1756302643497,-599.43,0.00021917,2]
[381647834,1756302643507,-480.0,0.00021917,2]
[381647836,1756302643517,-730.7,0.00021917,2]
[381647838,1756302643526,-405.6019852,0.00021917,2]
[381648117,1756302645885,-74.3980148,0.00021917,2]
[381648119,1756302645895,-480.0,0.00021917,2]
[381648121,1756302645905,-480.0,0.00021917,2]
[381648123,1756302645915,-480.0,0.00021917,2]
[381648125,1756302645924,-480.0,0.00021917,2]
[381648127,1756302645933,-480.0,0.00021917,2]
[381648130,1756302645943,-480.0,0.00021917,2]
[381648131,1756302645952,-480.0,0.00021917,2]
[381648133,1756302645962,-480.0,0.00021917,2]
[381648135,1756302645971,-480.0,0.00021917,2]
[381648137,1756302645980,-480.0,0.00021917,2]
[381648139,1756302645991,-480.0,0.00021917,2]
[381648141,1756302646000,-480.0,0.00021917,2]
[381648143,1756302646009,-480.0,0.00021917,2]
[381648145,1756302646018,-480.0,0.00021917,2]
[381648147,1756302646028,-480.0,0.00021917,2]
[381648149,1756302646037,-480.0,0.00021917,2]
[381648151,1756302646046,-480.0,0.00021917,2]
[381648153,1756302646055,-480.0,0.00021917,2]
[381648155,1756302646064,-480.0,0.00021917,2]
[381648157,1756302646073,-480.0,0.00021917,2]
[381648159,1756302646083,-480.0,0.00021917,2]
[381648161,1756302646092,-480.0,0.00021917,2]
[381648163,1756302646101,-480.0,0.00021917,2]
[381648165,1756302646110,-480.0,0.00021917,2]
[381648167,1756302646120,-480.0,0.00021917,2]
[381648169,1756302646131,-480.0,0.00021917,2]
[381648171,1756302646140,-480.0,0.00021917,2]
[381648174,1756302646151,-480.0,0.00021917,2]
[381648176,1756302646161,-480.0,0.00021917,2]
[381648178,1756302646170,-480.0,0.00021917,2]
[381648180,1756302646179,-480.0,0.00021917,2]
[381648182,1756302646189,-480.0,0.00021917,2]
[381648184,1756302646198,-480.0,0.00021917,2]
[381648186,1756302646208,-480.0,0.00021917,2]
[381648188,1756302646221,-480.0,0.00021917,2]
[381648190,1756302646231,-905.1,0.00021917,2]
[381648192,1756302646242,-480.0,0.00021917,2]
[381648194,1756302646250,-480.0,0.00021917,2]
[381648196,1756302646260,-480.0,0.00021917,2]
[381648198,1756302646269,-480.0,0.00021917,2]
[381648200,1756302646278,-480.0,0.00021917,2]
[381648202,1756302646287,-480.0,0.00021917,2]
[381648204,1756302646296,-480.0,0.00021917,2]
[381648206,1756302646305,-480.0,0.00021917,2]
[381648208,1756302646315,-196.71760109,0.00021917,2]
[381648210,1756302646324,-480.0,0.00021917,2]
[381648212,1756302646333,-480.0,0.00021917,2]
[381648214,1756302646342,-480.0,0.00021917,2]
[381648216,1756302646352,-480.0,0.00021917,2]
[381648218,1756302646361,-480.0,0.00021917,2]
[381648220,1756302646370,-574.15,0.00021917,2]
[381648222,1756302646380,-480.0,0.00021917,2]
[381648224,1756302646389,-565.81,0.00021917,2]
[381648226,1756302646399,-480.0,0.00021917,2]
[381648228,1756302646408,-480.0,0.00021917,2]
[381648230,1756302646418,-480.0,0.00021917,2]
[381648232,1756302646427,-480.0,0.00021917,2]
[381648234,1756302646436,-480.0,0.00021917,2]
[381648236,1756302646445,-480.0,0.00021917,2]
[381648238,1756302646455,-480.0,0.00021917,2]
[381648240,1756302646464,-480.0,0.00021917,2]
[381648242,1756302646473,-480.0,0.00021917,2]
[381648244,1756302646482,-1202.43,0.00021917,2]
[381648246,1756302646493,-480.0,0.00021917,2]
[381648248,1756302646503,-480.0,0.00021917,2]
[381648250,1756302646512,-480.0,0.00021917,2]
[381648252,1756302646522,-480.0,0.00021917,2]
[381648254,1756302646531,-480.0,0.00021917,2]
[381648256,1756302646541,-480.0,0.00021917,2]
[381648258,1756302646551,-756.76,0.00021917,2]
[381648260,1756302646560,-480.0,0.00021917,2]
[381648262,1756302646570,-480.0,0.00021917,2]
[381648264,1756302646579,-480.0,0.00021917,2]
[381648266,1756302646589,-480.0,0.00021917,2]
[381648268,1756302646599,-480.0,0.00021917,2]
[381648270,1756302646607,-480.0,0.00021917,2]
[381648272,1756302646617,-480.0,0.00021917,2]
[381648274,1756302646626,-480.0,0.00021917,2]
[381648276,1756302646636,-480.0,0.00021917,2]
[381648278,1756302646646,-480.0,0.00021917,2]
[381648280,1756302646655,-480.0,0.00021917,2]
[381648282,1756302646664,-480.0,0.00021917,2]
[381648284,1756302646673,-480.0,0.00021917,2]
[381648286,1756302646683,-480.0,0.00021917,2]
[381648288,1756302646692,-480.0,0.00021917,2]
[381648290,1756302646702,-480.0,0.00021917,2]
[381648293,1756302646712,-480.0,0.00021917,2]
[381648295,1756302646721,-480.0,0.00021917,2]
[381648296,1756302646730,-480.0,0.00021917,2]
[381648299,1756302646741,-299.80219609,0.00021917,2]
[381648301,1756302646750,-1436.24,0.00021917,2]
[381648303,1756302646759,-480.0,0.00021917,2]
[381648305,1756302646769,-480.0,0.00021917,2]
[381648307,1756302646778,-480.0,0.00021917,2]
[381648309,1756302646787,-480.0,0.00021917,2]
[381648311,1756302646797,-480.0,0.00021917,2]
[381648313,1756302646806,-480.0,0.00021917,2]
[381648315,1756302646815,-480.0,0.00021917,2]
[381648317,1756302646824,-480.0,0.00021917,2]
[381648319,1756302646833,-480.0,0.00021917,2]
[381648321,1756302646842,-480.0,0.00021917,2]
[381648323,1756302646852,-480.0,0.00021917,2]
[381648325,1756302646861,-480.0,0.00021917,2]
[381648327,1756302646871,-480.0,0.00021917,2]
[381648329,1756302646880,-480.0,0.00021917,2]
[381648331,1756302646889,-480.0,0.00021917,2]
[381648333,1756302646898,-480.0,0.00021917,2]
[381648335,1756302646907,-480.0,0.00021917,2]
[381648337,1756302646916,-480.0,0.00021917,2]
[381648339,1756302646925,-350.89430028,0.00021917,2]
[381648341,1756302646934,-482.48028982,0.00021917,2]
[381648343,1756302646944,-480.0,0.00021917,2]
[381648345,1756302646953,-480.0,0.00021917,2]
[381648347,1756302646962,-480.0,0.00021917,2]
[381648349,1756302646971,-480.0,0.00021917,2]
[381648351,1756302646980,-480.0,0.00021917,2]